Workbook

Sheet Last-Mile Project Budget
B1: Northern Development Initiative Trust
B2: Connecting British Columbia Program - Phase Two
B3: Intake 2 - Last-Mile
B4: TEMPLATE 2 - PROJECT BUDGET
B5: Instructions:
B6: All costs below are listed as examples - insert values relevant to your project.
B7: Add or delete line items as necessary.
B8: Adjust formulas to incorporate new items as necessary.
B9: Project Name:
B10: Prepared By:
B11: Expense Item: | D11: Equipment/ Parts Costs | E11: Labour Costs | F11: Total
B12: Engineering and Project Management
B13: Site survey | D13: 0 | E13: $2,500.00
B14: Project management | D14: 0 | E14: $2,000.00
B15: Subtotal | D15: =SUM(D13:D14) -> 0 | E15: =SUM(E13:E14) -> $4,500.00 | F15: =SUM(D15:E15) -> $4,500.00
B16: Site Preparation
B17: Site preparation - Level rock for tower base | D17: 0 | E17: $2,000.00
B18: Drilling for rock anchors and fencing | D18: $1,200.00 | E18: $2,000.00
B19: Concrete | D19: $2,000.00 | E19: $2,000.00
B20: Fencing and climbing shield | D20: $2,500.00 | E20: $1,000.00
B21: Subtotal | D21: =SUM(D17:D20) -> $5,700.00 | E21: =SUM(E17:E20) -> $7,000.00 | F21: =SUM(D21:E21) -> $12,700.00
B22: Point of Presence and Tower Locations
B23: Installation two 10 meter tower | D23: $5,000.00 | E23: $3,000.00
B24: Installation of equipment box on towers | D24: $1,500.00 | E24: $1,000.00
B25: Installation of uninterruptable power supply (UPS) | D25: $1,000.00 | E25: $400.00
B26: Installation of antennas on tower | D26: $1,600.00 | E26: $1,200.00
B27: Installation of wireless radios (access points) | D27: $3,000.00 | E27: $600.00
B28: Installation of conduit and power between point of presence and tower | D28: $500.00 | E28: $1,000.00
B29: Ethernet cable between wireless radios and Internet gateway service provider equipment | D29: $100.00 | E29: $500.00
B30: Subtotal | D30: =SUM(D23:D29) -> $12,700.00 | E30: =SUM(E23:E29) -> $7,700.00 | F30: =SUM(D30:E30) -> $20,400.00
B31: Set Up, Configuration and System Testing
B32: Install router | D32: $600.00 | E32: $200.00
B33: Set up, configuration and system testing | D33: $1,100.00 | E33: $1,500.00
B34: Subtotal | D34: =SUM(D32:D33) -> $1,700.00 | E34: =SUM(E32:E33) -> $1,700.00 | F34: =SUM(D34:E34) -> $3,400.00
B35: Customer Premise
B36: Subscriber units | D36: $6,000.00 | E36: $1,500.00
B37: Subtotal | D37: =SUM(D36) -> $6,000.00 | E37: =SUM(E36) -> $1,500.00 | F37: =SUM(D37:E37) -> $7,500.00
B38: Other Equipment
B39: Insert description (if applicable) | D39: 0 | E39: 0
B40: Subtotal | D40: =SUM(D39) -> 0 | E40: =SUM(E39) -> 0 | F40: =SUM(D40:E40) -> 0
B41: One-time Network Set Up Fees
B42: ISP charge | D42: 0 | E42: $500.00
B43: Subtotal | D43: =SUM(D42) -> 0 | E43: =SUM(E42) -> $500.00 | F43: =SUM(D43:E43) -> $500.00
B44: Miscellaneous
B45: Shipping costs | D45: $2,000.00 | E45: 0
B46: Travel | D46: 0 | E46: $5,000.00
B47: Consultation costs | D47: $2,000.00 | E47: $3,000.00
B48: Subtotal | D48: =SUM(D45:D47) -> $4,000.00 | E48: =SUM(E45:E47) -> $8,000.00 | F48: =SUM(D48:E48) -> $12,000.00
B49: Ineligible Expenses
B50: Permit and licensing costs (ineligible) | D50: $5,000.00
B51: Contingency reserve based on risk management plans (ineligible) | D51: $5,000.00 | E51: $5,000.00
B52: Subtotal | D52: =SUM(D50:D51) -> $10,000.00 | E52: =SUM(E50:E51) -> $5,000.00 | F52: =SUM(D52:E52) -> $15,000.00
B53: Total Eligible Expenses | D53: =D15+D21+D30+D34+D37+D40+D43+D48 -> $30,100.00 | E53: =E15+E21+E30+E34+E37+E40+E43+E48 -> $30,900.00 | F53: =F15+F21+F30+F34+F37+F40+F43+F48 -> $61,000.00
B54: Total Budgeted Expenses | D54: =D53+D52 -> $40,100.00 | E54: =E53+E52 -> $35,900.00 | F54: =F53+F52 -> $76,000.00
B56: Funding Sources
B57: Connecting British Columbia - Phase Two (Intake 2 - Last-Mile) Grant | F57: $30,500.00
B58: Applicant organization | F58: $25,000.00
B59: Other funding sources (bank loans, corporate donations, community support, other grants) | F59: $20,500.00
B60: Total one-time funding | F60: =SUM(F57:F59) -> $76,000.00
B62: Funding shortfall/overage | F62: =F54-F60 -> 0 | G62: Must equal $0
B64: Funding Percentage Requested (Requested Grant ÷ Total Eligible Expenses) | F64: =F57/F53 -> 50.00% | G64: Maximum 50%
